bitfinex/quotes_ETHUSD_20250815
["timestamp","ask_amount","ask_price","bid_price","bid_amount"]
[1755292598697,41.32566814,4403.3,4403.2,0.001]
[1755292599021,41.21206814,4403.3,4403.2,0.001]
[1755292599194,43.24630271,4403.3,4403.2,0.001]
[1755292599400,2.27159147,4402.2,4402.1,0.02]
[1755292599602,0.6847236,4402.2,4402.1,0.02]
[1755292599825,0.47893645,4402.2,4402.1,0.02]
[1755292600219,0.85405314,4402.2,4402.1,0.02]
[1755292600436,5.55474461,4402.2,4402.1,0.02]
[1755292600757,35.55474461,4402.2,4402.1,0.02]
[1755292601333,36.00164461,4402.2,4402.1,0.02]
[1755292601948,39.12617715,4402.2,4402.1,0.02]
[1755292602236,39.33372083,4402.2,4402.1,0.02]
[1755292603440,39.33388535,4402.2,4402.1,0.02]
[1755292603636,2.2718878,4401.7,4400.7,0.4655]
[1755292603848,1.59549539,4401.2,4400.7,0.4655]
[1755292604006,2.07360914,4401.2,4400.7,0.4655]
[1755292604332,0.47893645,4401.2,4400.1,0.02]
[1755292604508,2.75104405,4401.2,4400.4,0.4655]
[1755292604843,2.27248992,4400.5,4400.1,0.02]
[1755292605035,1.59576755,4400.3,4400.1,0.02]
[1755292605223,0.47893645,4400.2,4400.1,0.02]
[1755292605430,6.08386164,4400.2,4400.1,0.02]
[1755292605906,3.68662111,4400.2,4400.1,0.02]
[1755292606101,33.8112385,4400.2,4400.1,0.02]
[1755292606445,3.0,4400.1,4399.2,0.4655]
[1755292606646,1.19681078,4399.3,4399.2,2.73863005]
[1755292606804,0.79792182,4399.4,4399.3,0.82586301]
[1755292607133,1.07728692,4399.4,4399.3,4.68045191]
[1755292607314,0.47878138,4399.4,4399.3,4.68045191]
[1755292607516,1.07727057,4399.4,4399.3,4.68045191]
[1755292608011,0.59848919,4399.8,4399.4,0.55]
[1755292608221,0.59848919,4400.0,4399.9,2.82277892]
[1755292608421,0.79792182,4400.9,4400.3,0.55]
[1755292608740,0.79792182,4402.0,4401.9,2.82174629]
[1755292608936,0.79792182,4402.0,4401.6,0.55]
[1755292608937,0.02,4402.4,4402.0,0.55]
[1755292609241,0.02,4402.4,4401.0,2.27216682]
[1755292609242,0.02,4403.4,4403.2,0.55]
[1755292609557,0.02,4403.4,4403.3,4.70734473]
[1755292609877,0.02,4404.4,4403.4,0.55]
[1755292610160,0.002,4404.9,4404.6,0.55]
[1755292610310,0.002,4404.9,4404.8,2.82025063]
[1755292610506,0.002,4404.9,4404.8,3.4429126]
[1755292610807,0.002,4404.9,4404.8,3.9084126]
[1755292611439,0.002,4404.9,4404.8,5.0244126]
[1755292612728,0.002,4404.9,4404.8,1.63816197]
[1755292613042,0.002,4404.9,4404.8,1.1291]
[1755292613546,0.002,4404.9,4404.8,3.39935063]
[1755292613841,0.002,4404.9,4404.8,1.1291]
[1755292614864,0.002,4404.9,4404.8,4.51535063]
[1755292616946,0.002,4404.9,4404.8,7.03035063]
[1755292617150,0.002,4404.9,4404.8,7.96041984]
[1755292617360,0.002,4404.9,4404.8,9.07641984]
[1755292617557,0.002,4404.9,4404.8,7.96041984]
[1755292618361,0.002,4404.9,4404.8,0.1136]
[1755292618726,0.002,4404.9,4404.2,2.82055992]
[1755292618927,0.002,4404.9,4404.5,0.4655]
[1755292619478,0.002,4404.9,4404.4,0.55]
[1755292619680,0.002,4404.9,4404.5,3.635]
[1755292620228,0.002,4404.9,4404.6,0.4655]
[1755292620429,0.002,4404.9,4404.6,2.73584971]
[1755292620733,0.002,4404.9,4404.5,3.635]
[1755292620958,0.002,4404.9,4404.5,4.26186568]
[1755292621458,0.002,4404.9,4404.5,6.53222881]
[1755292621661,0.002,4404.9,4404.5,4.26186568]
[1755292621868,0.002,4404.9,4404.6,3.631]
[1755292622070,0.002,4404.9,4404.8,2.27025063]
[1755292622278,0.002,4404.9,4404.8,3.65391476]
[1755292622566,0.02,4405.4,4405.3,2.81999296]
[1755292622730,0.02,4405.4,4405.3,6.45199296]
[1755292622937,0.02,4405.4,4405.3,6.91749296]
[1755292623548,0.02,4405.4,4405.3,3.632]
[1755292623842,0.4669,4405.4,4403.3,0.28211049]
[1755292624063,0.4776528,4405.3,4404.1,2.27061091]
[1755292624274,0.4776528,4405.2,4404.1,2.2705733]
[1755292624576,2.9067528,4405.1,4403.4,0.4655]
[1755292624778,0.4776528,4405.0,4404.9,2.27019909]
[1755292625077,0.02,4405.4,4405.0,0.55]
[1755292625279,0.02,4405.4,4405.3,2.81999296]
[1755292625742,1e-08,4405.8,4405.7,2.81978686]
[1755292625947,1e-08,4405.8,4405.7,6.47748472]
[1755292626182,1e-08,4405.8,4405.7,4.40128686]
[1755292626447,1e-08,4405.8,4405.7,8.70340201]
[1755292626753,1e-08,4406.3,4406.2,2.81952929]
[1755292626965,1e-08,4406.4,4406.3,5.81947779]
[1755292627148,1e-08,4406.4,4406.3,6.99444803]
[1755292627357,1e-08,4406.4,4406.3,8.57604803]
[1755292627683,1e-08,4407.4,4407.3,2.81896285]
[1755292627859,1e-08,4407.4,4407.3,6.47965247]
[1755292628069,1e-08,4407.4,4407.3,8.03856285]
[1755292628268,1e-08,4407.4,4407.3,9.06932319]
[1755292628684,1e-08,4407.4,4407.3,9.18292319]
[1755292629992,1e-08,4407.4,4407.3,5.54492319]
[1755292630179,1e-08,4407.4,4407.3,9.18092319]
[1755292630889,1e-08,4407.4,4407.3,3.96332319]
[1755292631093,1e-08,4407.4,4407.3,6.01356285]
[1755292631443,1e-08,4407.4,4407.3,6.36556285]
[1755292631713,1e-08,4407.4,4407.3,6.91556285]
[1755292631924,1e-08,4407.4,4407.3,3.28456285]
[1755292632125,1e-08,4407.4,4407.3,6.92056285]
[1755292632408,1e-08,4407.4,4407.3,7.83952319]
[1755292632610,1e-08,4407.4,4407.3,11.95552319]
[1755292633280,1e-08,4407.4,4407.3,11.95652319]
[1755292634988,1e-08,4407.4,4407.3,10.84052319]
[1755292636914,1e-08,4407.4,4407.3,11.95652319]
[1755292637344,1e-08,4407.4,4407.3,4.20352319]
[1755292637522,1e-08,4407.4,4406.8,5.543891]
[1755292637713,2.4379,4407.3,4407.2,2.26900335]
[1755292637917,1e-08,4407.4,4407.3,2.81896285]
[1755292638989,2.43790001,4407.4,4407.3,2.81896285]
[1755292639317,2.43790001,4407.4,4407.3,3.635]
[1755292639318,2.90720001,4407.4,4407.3,3.635]
[1755292639511,1e-08,4407.4,4407.3,3.635]
[1755292639715,1e-08,4407.4,4407.3,6.45396285]
[1755292640450,1e-08,4407.4,4407.3,2.81896285]
[1755292640750,2.90720001,4407.4,4407.3,1.133]
[1755292640950,2.90720001,4407.4,4407.3,3.633]
[1755292641520,2.43790001,4407.4,4407.3,3.633]
[1755292641739,2.90720001,4407.4,4407.3,3.7466]
[1755292642125,1e-08,4407.4,4407.3,6.56556285]
[1755292642330,1e-08,4407.4,4407.3,4.2966]
[1755292642527,2.90720001,4407.4,4407.3,4.2966]
[1755292642760,2.90720001,4407.4,4407.3,3.633]
[1755292643132,3.38638644,4407.4,4407.0,0.1136]
[1755292643334,0.94848643,4407.3,4407.1,3.634]
[1755292643538,0.47918643,4407.2,4407.1,3.634]
[1755292643739,0.47918643,4407.2,4407.1,3.7476]
[1755292643740,3.38638643,4407.2,4407.1,3.7476]
[1755292643928,2.9072,4407.2,4407.1,3.7476]
[1755292644129,3.38638643,4407.2,4407.1,3.7476]
[1755292644428,2.9072,4407.2,4407.1,3.7466]
[1755292644634,3.38683567,4407.2,4407.1,3.7466]
[1755292644838,2.9072,4407.2,4407.1,3.7466]
[1755292645156,3.38683567,4407.2,4407.0,3.633]
[1755292645461,0.11360001,4407.4,4407.1,3.633]
[1755292645639,0.47977475,4407.3,4407.2,3.633]
[1755292645839,3.38697475,4407.3,4407.2,3.633]
[1755292647968,0.47977475,4407.3,4407.2,3.633]
[1755292648150,3.38697475,4407.3,4407.2,3.628]
[1755292648552,3.38697475,4407.3,4406.7,2.26922397]
[1755292648735,0.47977475,4407.2,4406.8,3.63]
[1755292648936,3.38697475,4407.1,4407.0,0.1136]
[1755292649359,3.38697475,4407.1,4407.0,3.63]
[1755292650465,3.38697475,4407.1,4406.8,0.1136]
[1755292650664,3.18073297,4406.9,4406.3,3.629]
[1755292650827,3.18073297,4406.9,4406.1,0.1136]
[1755292650828,0.1136,4406.6,4406.2,3.629]
[1755292651034,0.47977475,4406.5,4406.2,3.629]
[1755292651262,3.38697475,4406.4,4405.9,0.1136]
[1755292651472,3.38697475,4406.4,4405.8,3.629]
[1755292651473,3.38697475,4406.3,4405.8,3.629]
[1755292651771,0.79792182,4406.5,4405.6,3.629]
[1755292651772,4.18489657,4406.2,4405.6,3.629]
[1755292652069,0.1136,4405.9,4405.6,3.629]
[1755292652276,0.47977475,4405.8,4405.3,0.1136]
[1755292652481,0.1136,4405.9,4404.6,5.451]
[1755292652482,3.38697475,4405.7,4405.4,3.628]
[1755292652780,3.38697475,4405.6,4405.2,3.628]
[1755292653080,1.19681078,4406.2,4404.3,3.628]
[1755292653081,30.0,4405.2,4404.3,3.628]
[1755292653386,2.91767475,4405.1,4404.3,3.628]
[1755292653535,0.47977475,4405.0,4404.3,3.628]
[1755292653743,0.47977475,4404.9,4404.3,4.21995561]
[1755292654044,0.47977475,4404.8,4404.3,4.21995561]
[1755292654354,0.47977475,4404.7,4404.3,4.21995561]
[1755292654541,2.4379,4405.1,4404.3,3.628]
[1755292654747,0.48007992,4405.0,4404.3,3.628]
[1755292654935,2.4379,4405.1,4404.3,3.628]
[1755292654936,0.48007992,4404.9,4404.3,3.628]
[1755292655138,2.4379,4405.1,4404.3,3.628]
[1755292655139,0.48007992,4404.8,4404.3,3.628]
[1755292655469,0.4798797,4405.0,4404.3,3.628]
[1755292655674,2.4379,4405.8,4404.6,0.55]
[1755292655968,2.4379,4405.8,4404.3,4.4585]
[1755292655969,0.47993082,4405.7,4404.8,0.55]
[1755292656269,0.47993082,4405.6,4404.9,3.627]
[1755292656460,2.4379,4405.8,4404.9,3.627]
[1755292656461,0.47993082,4405.5,4404.9,3.627]
[1755292656767,0.47993082,4405.4,4404.9,3.627]
[1755292656968,0.47993082,4405.3,4404.9,3.627]
[1755292657174,0.47993082,4405.2,4404.9,3.627]
[1755292657372,2.4379,4405.8,4404.9,3.627]
[1755292657373,0.47993082,4405.7,4404.9,3.627]
[1755292657550,0.47993082,4405.6,4404.9,3.627]
[1755292657736,0.47993082,4405.5,4404.9,3.627]
[1755292657945,0.47993082,4405.4,4404.9,3.627]
[1755292658141,0.47993082,4405.7,4404.9,3.627]
[1755292658344,0.47993082,4405.6,4404.9,3.627]
[1755292658669,2.4379,4405.8,4404.4,0.55]
[1755292658670,0.47993082,4405.5,4404.4,0.55]
[1755292658850,0.47993082,4405.7,4404.4,0.92253]
[1755292659042,2.4379,4405.8,4404.4,0.92253]
[1755292659043,0.47993082,4405.6,4404.7,0.55]
[1755292659373,0.47993082,4405.5,4404.8,3.622]
[1755292659544,0.47993082,4405.7,4404.8,3.622]
[1755292659747,2.26994062,4405.5,4404.8,0.001]
[1755292659957,0.47993082,4405.4,4404.8,0.001]
[1755292660163,3.0,4405.2,4404.8,0.001]
[1755292660347,0.47993082,4405.1,4404.8,0.001]
[1755292660548,2.27019909,4404.9,4404.8,0.001]
[1755292660888,35.75012991,4404.9,4404.8,0.001]
[1755292661190,38.47912991,4404.9,4404.8,0.001]
[1755292663043,38.59272991,4404.9,4404.8,0.001]
[1755292663341,36.32253082,4404.9,4404.8,0.001]
[1755292663964,2.8426,4404.9,4404.8,0.001]
[1755292664181,0.1136,4404.9,4404.8,0.001]
[1755292664691,0.1136,4405.1,4404.8,0.001]
[1755292665036,0.1136,4405.6,4405.0,0.1136]
[1755292666684,3.0,4405.4,4404.8,0.001]
[1755292666983,0.1136,4404.9,4404.8,0.001]
[1755292667280,35.38379909,4404.9,4404.8,0.001]
[1755292667484,38.59195791,4404.9,4404.8,0.001]
[1755292667782,38.59219957,4404.9,4404.8,0.001]
[1755292667952,3.1136,4404.9,4404.8,0.001]
[1755292668282,0.1136,4405.5,4404.8,0.1146]
[1755292670081,3.0,4406.0,4404.8,0.1146]
[1755292670082,0.1136,4405.9,4405.2,0.1136]
[1755292672354,0.1136,4405.9,4405.3,1.002]
[1755292672579,0.1136,4406.4,4405.8,0.1136]
[1755292672989,1.25279068,4406.6,4405.9,0.55]
[1755292673155,0.11560001,4407.4,4406.4,0.55]
[1755292673350,0.00200001,4407.4,4407.3,0.1136]
[1755292674669,0.00200001,4407.4,4407.3,5.72296285]
[1755292674875,0.00200001,4407.4,4407.3,9.90925913]
[1755292679356,0.00200001,4407.4,4407.3,6.29525913]
[1755292679561,0.00200001,4407.4,4407.3,9.90225913]
[1755292680195,0.00200001,4407.4,4407.3,1.23589628]
[1755292680371,0.00200001,4407.4,4407.3,3.7236]
[1755292680569,0.00200001,4407.4,4407.3,6.44456285]
[1755292680771,0.00200001,4407.4,4407.3,6.99456285]
[1755292681096,0.00200001,4407.4,4407.3,4.2736]
[1755292681605,0.00200001,4407.4,4407.3,3.7236]
[1755292681903,0.00200001,4407.4,4407.3,4.2736]
[1755292682115,0.00200001,4407.4,4407.3,7.25332285]
[1755292682278,0.00200001,4407.4,4407.3,6.09532285]
[1755292682615,0.00200001,4407.4,4407.3,9.70632285]
[1755292683296,0.00200001,4407.4,4407.3,3.75692285]
[1755292683498,0.00200001,4407.4,4407.3,4.168]
[1755292684163,0.00200001,4407.4,4407.3,0.55]
[1755292684369,2.73100001,4407.4,4406.2,0.452]
[1755292684563,2.73100001,4407.4,4406.5,3.619]
[1755292684859,2.73100001,4407.4,4406.6,0.55]
[1755292685311,2.73100001,4407.4,4406.7,3.62]
[1755292685759,2.73100001,4407.4,4405.1,0.452]
[1755292685760,30.4424,4407.3,4405.1,0.452]
[1755292685994,2.28860001,4407.4,4405.9,0.001]
[1755292685995,0.00200001,4407.4,4405.9,0.001]
[1755292686210,0.00200001,4407.4,4407.3,2.26896285]
[1755292686380,0.00200001,4407.4,4407.3,9.37326285]
[1755292686564,0.00200001,4407.4,4407.3,10.31058913]
[1755292686768,0.002,4407.8,4407.7,2.81875694]
[1755292687081,0.002,4407.8,4407.7,6.4684445]
[1755292687284,1e-08,4408.2,4408.1,2.81855107]
[1755292687467,1e-08,4408.2,4408.1,2.84123658]
[1755292687845,1e-08,4408.2,4408.1,7.40923931]
[1755292687968,1e-08,4408.4,4408.3,0.55]
[1755292688168,1e-08,4408.4,4408.3,2.84113263]
[1755292688406,1e-08,4408.4,4408.3,6.45044815]
[1755292689197,1e-08,4408.4,4408.3,6.90014815]
[1755292689503,1e-08,4408.4,4408.3,10.34671175]
[1755292689708,1e-08,4408.4,4408.3,10.34771175]
[1755292690764,1e-08,4408.4,4408.3,7.86511175]
[1755292690970,1e-08,4408.4,4408.3,10.34371175]
[1755292691164,1e-08,4408.4,4408.3,10.34471175]
[1755292691700,0.002,4409.1,4408.7,2.81824233]
[1755292691866,0.002,4409.1,4408.7,6.44724233]
[1755292692077,0.002,4409.1,4408.7,6.89694233]
[1755292692265,0.002,4409.1,4408.7,6.89594233]
[1755292692466,0.002,4409.1,4408.7,3.26794233]
[1755292692664,0.002,4409.1,4408.7,7.88317044]
[1755292693265,0.002,4409.1,4408.7,7.43347044]
[1755292693466,0.002,4409.1,4408.7,0.6636]
[1755292693700,2.8613,4408.8,4408.7,0.1136]
[1755292694004,2.8613,4408.8,4408.6,3.626]
[1755292694187,2.4252,4408.8,4408.6,3.626]
[1755292694387,0.4361,4408.7,4408.6,3.626]
[1755292694566,2.8593,4408.7,4408.6,3.626]
[1755292696620,0.002,4408.8,4408.3,3.627]
[1755292696902,0.002,4408.8,4408.7,0.55]
[1755292697105,0.002,4408.8,4408.7,4.178]
[1755292697806,0.002,4408.8,4408.1,3.629]
[1755292697807,2.9749,4408.8,4408.1,3.629]
[1755292698005,2.5388,4408.8,4408.1,3.7426]
[1755292698321,0.4361,4408.7,4408.1,3.7426]
[1755292698507,0.4361,4408.7,4408.1,0.1136]
[1755292698508,3.4361,4408.7,4408.1,0.1136]
[1755292698717,2.5388,4408.8,4407.3,0.001]
[1755292698718,3.0,4408.0,4407.3,0.001]
[1755292698876,2.38251137,4407.4,4407.3,0.001]
[1755292699080,35.38251137,4407.4,4407.3,0.001]
[1755292699321,38.89187712,4407.4,4407.3,0.001]
[1755292699517,3.45254207,4407.4,4407.3,0.001]
[1755292699686,2.9729,4407.4,4407.3,0.001]
[1755292699881,5.60757137,4408.0,4407.3,0.001]
[1755292700104,0.1136,4407.7,4407.3,0.001]
[1755292700414,2.8593,4408.0,4407.3,0.001]
[1755292700415,2.8593,4408.0,4407.5,0.1136]
[1755292700579,2.4252,4408.8,4407.3,0.001]
[1755292700777,2.4252,4408.8,4407.4,0.55]
[1755292700778,0.002,4408.3,4407.4,0.55]
[1755292700978,0.002,4408.3,4408.0,0.1136]
[1755292701220,0.002,4408.3,4408.1,2.26855107]
[1755292701382,0.002,4408.3,4407.3,0.001]
[1755292701580,2.8593,4408.2,4407.3,0.001]
[1755292701923,2.26856264,4408.1,4407.3,0.001]
[1755292702413,2.26860741,4408.0,4407.3,0.001]
[1755292702623,2.8593,4408.0,4407.3,0.001]
[1755292705024,2.27045104,4408.3,4407.4,2.81888033]
[1755292705025,0.002,4408.3,4407.4,2.81888033]
[1755292705342,0.002,4408.3,4407.5,0.55]
[1755292705613,0.002,4408.3,4407.3,0.001]
[1755292705836,0.002,4408.3,4407.3,0.551]
[1755292706015,0.002,4408.3,4407.3,0.001]
[1755292706189,0.002,4408.3,4407.5,0.55]
[1755292706389,0.002,4408.3,4407.3,0.551]
[1755292706589,2.26849961,4408.2,4407.3,0.001]
[1755292706788,2.8593,4408.1,4407.3,0.001]
[1755292707103,2.26870583,4407.8,4407.3,0.001]
[1755292707306,3.18575327,4408.0,4407.3,0.001]
[1755292707506,3.0,4407.9,4407.3,0.001]
[1755292707824,2.8593,4407.7,4407.3,0.001]
[1755292708187,2.26865529,4407.9,4407.3,0.001]
[1755292708510,2.8593,4407.6,4407.3,0.001]
[1755292708887,5.12816788,4407.5,4407.3,0.001]
[1755292709087,2.8593,4407.4,4407.3,0.001]
[1755292711214,5.12821137,4407.4,4407.3,0.001]
[1755292711412,35.24181137,4407.4,4407.3,0.001]
[1755292711639,35.72259022,4407.4,4407.3,0.001]
[1755292712510,38.72259022,4407.4,4407.3,0.001]
[1755292716143,40.08559022,4407.4,4407.3,0.001]
[1755292716444,40.68685394,4407.4,4407.3,0.001]
[1755292716660,41.84822704,4407.4,4407.3,0.001]
[1755292716846,41.79696332,4407.4,4407.3,0.001]
[1755292717004,42.3975802,4407.4,4407.3,0.001]
[1755292720903,41.79696332,4407.4,4407.3,0.001]
[1755292721210,42.3975802,4407.4,4407.3,0.001]
[1755292721411,41.79696332,4407.4,4407.3,0.001]
[1755292722033,42.3975802,4407.4,4407.3,0.001]
[1755292723205,42.00586023,4407.4,4407.3,0.001]
[1755292723404,41.56976023,4407.4,4407.3,0.001]
[1755292723629,42.17135892,4407.4,4407.3,0.001]
[1755292723821,39.74815892,4407.4,4407.3,0.001]
[1755292724334,42.09265707,4407.4,4407.3,0.001]
[1755292724518,42.69429401,4407.4,4407.3,0.001]
[1755292724923,38.38766332,4407.4,4407.3,0.001]
[1755292725638,37.02466332,4407.4,4407.3,2.8174]
[1755292725813,7.02466332,4407.4,4407.3,0.001]
[1755292726011,37.02466332,4407.4,4407.3,0.001]
[1755292729927,42.28520333,4407.4,4407.3,1e-08]
[1755292730121,41.68356639,4407.4,4407.3,1e-08]
[1755292730443,41.89294735,4407.4,4407.3,1e-08]
[1755292731355,42.22812439,4407.4,4407.3,1e-08]
[1755292731730,42.22822534,4407.4,4407.3,1e-08]
[1755292733129,43.02614716,4407.4,4407.3,1e-08]
[1755292734735,42.22822534,4407.4,4407.3,1e-08]
[1755292735334,40.08713746,4407.4,4407.3,1e-08]
[1755292735531,38.99149636,4407.4,4407.3,0.45600001]
[1755292735736,38.99149636,4407.4,4407.3,1e-08]
[1755292736138,38.59750733,4407.4,4407.3,1e-08]
[1755292736376,38.9332549,4407.4,4407.3,1e-08]
[1755292736582,38.59750733,4407.4,4407.3,1e-08]
[1755292736783,37.23450733,4407.4,4407.3,2.81640001]
[1755292737065,7.23450733,4407.4,4407.3,0.45600001]
[1755292737265,37.23450733,4407.4,4407.3,1e-08]
[1755292737644,37.62922305,4407.4,4407.3,1e-08]
[1755292737848,37.02466332,4407.4,4407.3,1e-08]
[1755292738269,37.23465779,4407.4,4407.3,0.45600001]
[1755292738468,7.23465779,4407.4,4407.3,0.45600001]
[1755292738669,37.23465779,4407.4,4407.3,1e-08]
[1755292739172,37.36070083,4407.4,4407.3,1e-08]
[1755292739837,37.02466332,4407.4,4407.3,2.81640001]
[1755292740255,31.96593542,4407.4,4407.3,2.81640001]
[1755292740560,1.1613731,4407.4,4407.3,3.09804001]
[1755292741348,1.1613731,4407.4,4407.3,2.81640001]
[1755292742079,1.1613731,4407.4,4407.3,2.93000001]
[1755292742465,1.1613731,4407.4,4407.3,0.11360001]
[1755292742680,1.1613731,4407.4,4407.3,2.81640001]
[1755292743271,3.43028447,4407.4,4407.3,2.81640001]
[1755292743472,3.43028447,4407.4,4407.3,1e-08]
[1755292743867,6.43028447,4407.4,4407.3,1e-08]
[1755292744066,36.91468819,4407.4,4407.3,1e-08]
[1755292746384,37.51971549,4407.4,4407.3,1e-08]
[1755292746694,37.51971549,4407.4,4407.3,2.70660001]
[1755292746695,6.91468819,4407.4,4407.3,2.70660001]
[1755292746882,6.91468819,4407.4,4407.3,0.42780001]
[1755292747273,1.75937682,4407.4,4407.3,2.70660001]
[1755292747477,1.2749731,4407.4,4407.3,2.70660001]
[1755292748196,3.54388447,4407.4,4407.3,2.70660001]
[1755292748682,3.54388447,4407.4,4407.3,0.42780001]
[1755292749978,3.54388447,4407.4,4407.3,1e-08]
[1755292753491,3.54388447,4407.4,4407.3,2.70660001]
[1755292753670,3.54388447,4407.4,4407.3,1e-08]
[1755292755073,1.1613731,4407.4,4407.3,1e-08]
[1755292755401,3.43028447,4407.4,4407.3,1e-08]
[1755292755772,1.1613731,4407.4,4407.3,1e-08]
[1755292756099,3.43028447,4407.4,4407.3,1e-08]
[1755292756288,6.43028447,4407.4,4407.3,1e-08]
[1755292756474,36.91468839,4407.4,4407.3,1e-08]
[1755292756911,39.31658839,4407.4,4407.3,1e-08]
[1755292757803,39.92204437,4407.4,4407.3,1e-08]
[1755292758005,39.31656665,4407.4,4407.3,1e-08]
[1755292758396,39.9222713,4407.4,4407.3,1e-08]
[1755292758974,37.5203713,4407.4,4407.3,1e-08]
[1755292759913,36.91466665,4407.4,4407.3,1e-08]
[1755292760100,6.91466665,4407.4,4407.3,1e-08]
[1755292760417,1.64575528,4407.4,4407.3,2.27880001]
[1755292760594,1.1613731,4407.4,4407.3,2.70660001]
[1755292761588,1.1613731,4407.4,4407.3,2.97726001]
[1755292762017,1.1613731,4407.4,4407.3,0.27066001]
[1755292762202,1.1613731,4407.4,4407.3,1e-08]
[1755292762712,1.1613731,4407.4,4407.3,0.42780001]
[1755292763692,1.1613731,4407.4,4407.3,2.70660001]
[1755292764489,0.1136,4408.1,4407.3,2.70660001]
[1755292764687,0.1136,4408.1,4407.4,0.50892643]
[1755292764916,0.1136,4408.1,4407.5,2.30148859]
[1755292765218,0.1136,4408.1,4407.6,0.4278]
[1755292765517,0.1136,4408.1,4407.7,2.7066]
[1755292765707,0.1136,4408.1,4407.8,0.4278]
[1755292765909,3.0,4407.7,4407.3,1e-08]
[1755292766108,2.38251137,4407.4,4407.3,1e-08]
[1755292766315,0.48502292,4407.6,4407.3,1e-08]
[1755292766510,2.38241011,4407.6,4407.4,2.7066]
[1755292766925,2.38241011,4407.6,4407.4,0.4278]
[1755292767236,0.1136,4407.6,4407.4,0.4278]
[1755292767532,0.1136,4407.6,4407.3,1e-08]
[1755292767732,0.1136,4407.6,4407.4,0.4278]
[1755292768031,0.1136,4407.6,4407.5,0.4278]
[1755292768220,2.38240842,4407.6,4407.3,1e-08]
[1755292768407,0.1136,4407.6,4407.3,1e-08]
[1755292768603,2.26891137,4407.4,4407.3,1e-08]
[1755292769606,38.12981137,4407.4,4407.3,1e-08]
[1755292769809,38.61499029,4407.4,4407.3,1e-08]
[1755292773741,38.15599029,4407.4,4407.3,1e-08]
[1755292774241,35.75409029,4407.4,4407.3,1e-08]
[1755292774852,5.75409029,4407.4,4407.3,1e-08]
[1755292775015,5.26891137,4407.4,4407.3,1e-08]
[1755292775739,8.12981137,4407.4,4407.3,1e-08]
[1755292775923,8.61499029,4407.4,4407.3,1e-08]
[1755292776557,8.15599029,4407.4,4407.3,1e-08]
[1755292776757,3.48517892,4407.4,4407.3,1e-08]
[1755292776957,5.26891137,4407.4,4407.3,1e-08]
[1755292778078,0.48517892,4407.5,4407.3,1e-08]
[1755292778223,0.1146,4408.2,4407.3,2.69110001]
[1755292778421,0.1146,4408.2,4407.4,2.9706716]
[1755292778638,2.26835974,4408.5,4407.4,0.70181]
[1755292778825,2.26855676,4408.1,4407.4,0.70181]
[1755292779038,0.48523257,4408.1,4407.4,0.26911]
[1755292779251,3.0,4408.5,4407.5,3.301051]
[1755292779500,0.61778789,4408.6,4407.3,1e-08]
[1755292779674,6.05388789,4408.6,4407.3,0.43270001]
[1755292780002,5.26855107,4408.1,4407.3,1e-08]
[1755292780165,30.0,4408.0,4407.4,2.2584]
[1755292780370,0.48523257,4407.9,4407.3,1e-08]
[1755292780603,30.0,4407.8,4407.3,1e-08]
[1755292780900,2.26870992,4407.8,4407.3,1e-08]
[1755292781096,2.26870992,4407.8,4407.3,0.43270001]
[1755292781097,30.0,4407.7,4407.3,0.43270001]
[1755292781663,30.0,4407.7,4407.3,1e-08]
[1755292781869,2.8802,4407.6,4407.3,1e-08]
[1755292782291,2.26890034,4407.5,4407.3,1e-08]
[1755292782603,2.26891137,4407.4,4407.3,1e-08]
[1755292782826,2.26875694,4407.7,4407.3,1e-08]
[1755292782975,2.26891137,4407.4,4407.3,1e-08]
[1755292784243,2.26882398,4407.6,4407.3,0.43270001]
[1755292784513,2.26876824,4407.7,4407.3,1e-08]
[1755292784725,2.26876824,4407.7,4407.4,0.4327]
[1755292784901,2.2688213,4407.6,4407.3,1e-08]
[1755292786227,2.26880842,4407.6,4407.3,1e-08]
[1755292786550,3.0,4407.9,4407.3,1e-08]
[1755292786753,2.26891137,4407.4,4407.3,1e-08]
[1755292786912,2.75405212,4407.4,4407.3,1e-08]
[1755292787312,0.48514075,4407.4,4407.3,1e-08]
[1755292787527,1.0928454,4408.3,4407.3,0.43270001]
[1755292787716,3.0,4408.1,4407.3,0.43270001]
[1755292787916,2.75369306,4408.1,4407.3,0.43270001]
[1755292788133,2.38236934,4407.7,4407.3,0.43270001]
[1755292788364,2.26891137,4407.4,4407.3,1e-08]
[1755292788864,2.38251137,4407.4,4407.3,1e-08]
[1755292789040,2.82661137,4407.4,4407.3,1e-08]
[1755292789239,2.86847437,4407.4,4407.3,1e-08]
[1755292789416,2.38251137,4407.4,4407.3,1e-08]
[1755292790322,5.26271137,4407.4,4407.3,1e-08]
[1755292790522,8.74867437,4407.4,4407.3,1e-08]
[1755292790726,38.74867437,4407.4,4407.3,1e-08]
[1755292794264,35.86847437,4407.4,4407.3,1e-08]
[1755292794548,33.77400466,4407.4,4407.3,1e-08]
[1755292794759,0.599563,4407.4,4407.3,1e-08]
[1755292794912,0.1136,4407.4,4407.3,1e-08]
[1755292795319,0.1136,4407.7,4407.3,2.69110001]
[1755292795650,0.1136,4407.7,4407.4,0.4327]
[1755292795651,30.0,4407.6,4407.4,0.4327]
[1755292796868,30.0,4407.6,4407.5,0.4327]
[1755292797053,30.48626586,4407.6,4407.3,1e-08]
[1755292797218,2.38235763,4407.7,4407.3,1e-08]
[1755292797219,0.1136,4407.7,4407.3,1e-08]
[1755292797415,30.0,4407.6,4407.4,0.4327]
[1755292797614,0.002,4408.1,4407.5,0.4327]
[1755292797819,0.002,4408.1,4407.6,0.55]
[1755292798124,0.002,4408.1,4408.0,2.26860254]
[1755292798523,0.002,4408.1,4408.0,2.6911]